bitfinex/quotes_ETHUSD_20251010
["timestamp","ask_amount","ask_price","bid_price","bid_amount"]
[1760132932415,4.03876871,3812.9,3808.5,17.09496185]
[1760132933328,4.03876871,3812.9,3808.5,18.32496185]
[1760132933705,1.34995533,3812.7,3808.5,18.32496185]
[1760132933937,1.35226481,3812.5,3808.5,18.32496185]
[1760132934122,1.30591334,3812.4,3808.5,18.32496185]
[1760132934314,1.34969999,3812.3,3808.6,0.27211178]
[1760132934626,3.99207189,3812.3,3808.6,1.23]
[1760132935029,1.33461454,3812.1,3808.6,1.23]
[1760132935208,1.31872559,3811.3,3808.6,1.23]
[1760132935411,3.96109749,3811.3,3808.6,1.23]
[1760132935623,1.3772254,3811.2,3808.6,1.23]
[1760132935827,1.61264507,3811.1,3808.7,1.35483407]
[1760132936005,1.33363455,3811.0,3808.7,0.11358043]
[1760132936333,2.35868117,3810.9,3808.6,2.46]
[1760132936531,4.00451008,3810.9,3808.6,2.46]
[1760132937335,4.00451008,3810.9,3808.6,3.28775641]
[1760132938717,1.39678239,3810.7,3808.6,3.28775641]
[1760132939030,4.03915429,3810.7,3808.6,4.51775641]
[1760132939242,1.34967035,3810.5,3808.6,4.51775641]
[1760132939411,3.99204225,3810.5,3808.7,0.17859078]
[1760132939614,3.99204225,3810.5,3808.6,4.51775641]
[1760132939815,0.49269761,3810.4,3808.6,3.14966499]
[1760132940007,2.6423719,3810.4,3808.6,3.14966499]
[1760132940210,2.6423719,3810.4,3808.6,4.37966499]
[1760132940627,2.6423719,3810.4,3808.6,4.29710948]
[1760132940832,2.6423719,3810.4,3808.6,4.1598511]
[1760132941027,0.23437928,3810.3,3808.6,4.1598511]
[1760132941226,2.87675118,3810.3,3808.6,3.89287355]
[1760132941534,0.23701573,3810.2,3808.6,4.86624155]
[1760132941739,2.87938763,3810.2,3808.6,4.86624155]
[1760132942107,2.87938763,3810.2,3808.6,4.24722341]
[1760132942445,2.87938763,3810.2,3808.6,3.96033841]
[1760132942814,2.87938763,3810.2,3808.6,5.19033841]
[1760132943413,2.6423719,3810.2,3808.6,5.19033841]
[1760132943911,0.26391114,3810.1,3808.6,5.19033841]
[1760132944230,2.9217915,3810.1,3808.6,5.19033841]
[1760132944431,2.6423719,3810.1,3808.6,6.42033841]
[1760132945943,2.6423719,3810.1,3808.6,7.65033841]
[1760132947306,2.6423719,3810.1,3808.6,8.88033841]
[1760132948728,2.6423719,3810.1,3808.6,10.11033841]
[1760132949962,2.6423719,3810.1,3808.6,11.34033841]
[1760132950662,2.6423719,3810.1,3808.7,0.42179445]
[1760132950959,2.6423719,3810.1,3808.6,11.34033841]
[1760132951325,2.6423719,3810.1,3808.6,12.57033841]
[1760132952535,2.6423719,3810.1,3808.7,0.39664873]
[1760132952736,2.6423719,3810.1,3808.6,13.80033841]
[1760132952946,1.40616094,3810.1,3808.8,0.28957548]
[1760132953253,1.3267445,3813.0,3808.6,13.80033841]
[1760132953438,1.3267445,3813.0,3808.9,0.21614392]
[1760132953637,1.38249159,3816.0,3808.9,0.78700497]
[1760132953959,1.38249159,3816.0,3809.0,0.33411911]
[1760132954360,6.62839159,3816.0,3808.9,1.23]
[1760132954650,6.62839159,3816.0,3809.1,0.78635825]
[1760132954850,6.62839159,3816.0,3809.2,0.26238343]
[1760132955353,6.62839159,3816.0,3809.1,0.78635825]
[1760132955544,6.62839159,3816.0,3809.1,2.01635825]
[1760132955739,6.62839159,3816.0,3809.2,1.01519063]
[1760132956058,1.38249159,3816.0,3809.3,0.22541537]
[1760132956244,1.38249159,3816.0,3809.4,0.18847114]
[1760132956439,1.38249159,3816.0,3809.5,0.23675097]
[1760132956643,1.31263671,3816.0,3809.6,0.21674876]
[1760132956836,1.31263671,3816.0,3809.7,0.23583851]
[1760132957041,1.38249159,3816.0,3809.7,0.23060184]
[1760132957361,1.33339106,3815.9,3809.8,0.25776167]
[1760132957551,1.39869061,3819.2,3809.9,0.1421036]
[1760132957859,1.30019995,3840.8,3820.5,0.15609484]
[1760132958062,0.78580212,3836.4,3809.6,1.15212061]
[1760132958275,1.49003384,3821.7,3810.1,0.16904657]
[1760132958572,1.49003384,3821.7,3809.7,0.46385338]
[1760132958573,0.02799897,3819.9,3810.2,0.77512398]
[1760132958773,0.02799897,3819.9,3810.3,0.31689306]
[1760132958954,0.02799897,3819.9,3810.4,0.28228226]
[1760132959150,10.73592136,3842.7,3810.5,0.30649702]
[1760132959348,0.77909462,3842.6,3810.6,0.50713912]
[1760132959664,6.00569462,3842.6,3810.7,0.26318916]
[1760132959858,6.00569462,3842.6,3810.8,0.61876845]
[1760132960166,6.00569462,3842.6,3810.9,0.65171723]
[1760132960470,0.2808547,3842.5,3811.0,0.81258289]
[1760132960675,0.30856183,3842.4,3811.1,0.37343303]
[1760132960836,0.40521834,3842.3,3811.2,0.53770859]
[1760132961036,0.43712371,3842.2,3811.3,0.23756788]
[1760132961356,5.40466706,3842.2,3811.4,0.60788518]
[1760132961669,0.20574452,3842.1,3811.5,0.34767721]
[1760132961868,0.75992362,3842.1,3811.5,0.18411082]
[1760132962031,0.32059215,3842.0,3811.6,0.23000634]
[1760132962235,0.24643056,3842.0,3811.7,0.37294328]
[1760132962443,0.11358043,3841.9,3811.8,0.76377374]
[1760132962645,0.18809712,3841.8,3811.9,0.73236187]
[1760132962933,0.13146835,3841.7,3811.9,0.30962258]
[1760132963138,0.41379949,3841.7,3811.7,1.23]
[1760132963371,0.84751765,3841.6,3812.0,0.80331405]
[1760132963574,0.7801357,3841.6,3812.1,0.19002918]
[1760132963883,0.27036239,3841.5,3812.2,0.46037966]
[1760132964076,1.37405576,3861.5,3812.3,0.37592535]
[1760132964251,0.26456814,3841.4,3812.4,0.13811616]
[1760132964443,0.001,3842.6,3812.5,0.19016647]
[1760132964645,0.23569702,3842.5,3812.6,0.63925753]
[1760132964873,0.23569702,3842.5,3812.7,0.23696735]
[1760132965053,0.6085119,3842.4,3812.8,0.62763536]
[1760132965249,0.11358043,3842.3,3812.9,0.54401296]
[1760132965565,0.11358043,3842.3,3813.0,0.14574813]
[1760132965751,0.001,3842.6,3810.6,9.5e-07]
[1760132965752,0.001,3842.6,3810.7,0.45257425]
[1760132965958,0.18053017,3842.5,3813.1,0.31695824]
[1760132966155,1.32743682,3862.9,3813.2,0.14574813]
[1760132966345,0.35840577,3861.5,3813.3,0.66876586]
[1760132966680,0.13637229,3858.8,3813.4,4.866e-05]
[1760132966978,0.4432,3872.8,3813.4,4.866e-05]
[1760132966979,1.87437564,3858.7,3813.4,2.005e-05]
[1760132967177,0.27801031,3858.6,3813.5,0.53175138]
[1760132967343,0.27801031,3858.6,3813.5,0.51919766]
[1760132967344,0.45880548,3858.5,3813.5,0.51919766]
[1760132967543,0.76453103,3858.4,3813.6,0.16001526]
[1760132967738,0.44170717,3858.3,3813.7,0.31376812]
[1760132967974,0.63805622,3858.2,3813.8,0.28785173]
[1760132968273,0.53480302,3858.1,3813.9,0.13747614]
[1760132968453,0.41684195,3858.0,3813.3,0.77722983]
[1760132968655,0.48949301,3857.9,3813.4,0.27819917]
[1760132968873,0.67567715,3857.8,3813.5,0.41969633]
[1760132969043,0.23095736,3857.7,3813.6,0.13450549]
[1760132969246,0.72050129,3857.6,3813.4,0.00015416]
[1760132969474,0.5355019,3857.5,3813.6,0.52881954]
[1760132969675,0.41534582,3857.4,3813.7,0.65373983]
[1760132969977,0.23932407,3857.3,3813.7,0.59321579]
[1760132970181,5.2136,3857.3,3813.7,0.59321579]
[1760132970360,5.2136,3857.3,3813.8,0.21240518]
[1760132970541,5.2136,3857.3,3813.9,0.50415131]
[1760132970746,5.2136,3857.3,3814.0,0.23643709]
[1760132970949,5.2136,3857.3,3814.1,0.31109125]
[1760132971181,5.2136,3857.3,3814.2,0.33292079]
[1760132971480,5.2136,3857.3,3814.3,0.60366947]
[1760132971684,5.2136,3857.3,3814.4,0.5002915]
[1760132971854,5.2136,3857.3,3814.5,0.34503367]
[1760132972055,5.2136,3857.3,3814.6,0.44695194]
[1760132972250,5.2136,3857.3,3814.7,0.38715914]
[1760132972573,5.2136,3857.3,3814.8,0.29537211]
[1760132972874,0.98300308,3857.2,3814.9,0.29475972]
[1760132973050,6.19660308,3857.2,3815.0,0.27504315]
[1760132973251,6.19660308,3857.2,3815.1,0.31425972]
[1760132973472,6.19660308,3857.2,3815.2,0.2862501]
[1760132973774,6.19660308,3857.2,3815.3,0.37117638]
[1760132973967,6.19660308,3857.2,3815.4,0.31983343]
[1760132974166,0.13623034,3857.1,3815.5,0.39492638]
[1760132974368,0.22622942,3857.0,3815.6,0.32016677]
[1760132974546,5.43982942,3857.0,3815.7,0.35274582]
[1760132974748,0.463983,3856.9,3815.8,0.28132377]
[1760132974954,0.24974794,3856.8,3815.8,0.28132377]
[1760132975155,0.69333677,3856.7,3815.8,1.23]
[1760132975355,0.74600556,3856.6,3815.9,0.22716086]
[1760132975554,0.76223019,3856.5,3815.8,1.34358043]
[1760132975769,5.52621972,3856.5,3815.9,0.06843982]
[1760132975976,1.31073345,3856.3,3815.9,0.06843982]
[1760132976172,2.07723797,3856.2,3815.8,1.23]
[1760132976377,0.85363931,3856.1,3815.8,1.23]
[1760132976576,0.71525376,3856.0,3815.8,2.46]
[1760132976765,5.2136,3856.0,3815.9,0.11358043]
[1760132977161,0.74434377,3855.9,3815.8,2.46]
[1760132977363,5.80427285,3855.9,3815.9,0.62454819]
[1760132977574,5.2136,3855.9,3816.0,0.28896458]
[1760132977777,0.4432,3855.8,3816.0,1.23]
[1760132977952,5.6568,3855.8,3816.1,0.31631258]
[1760132978158,0.4432,3855.7,3816.1,0.39577644]
[1760132978364,5.99471472,3855.7,3816.1,0.11358043]
[1760132978565,0.76640621,3855.6,3816.0,1.23]
[1760132978777,5.2136,3855.6,3816.1,0.26732387]
[1760132978977,0.30502343,3855.5,3816.1,0.26732387]
[1760132979185,5.2136,3855.5,3816.2,0.32639035]
[1760132979490,5.2136,3855.5,3816.3,0.14332288]
[1760132979981,0.31149886,3855.4,3816.4,0.2801949]
[1760132980277,5.2136,3855.4,3816.5,0.53472936]
[1760132980484,5.2136,3855.4,3816.6,0.2699292]
[1760132980663,5.2136,3855.4,3816.7,0.26256949]
[1760132980861,5.2136,3855.4,3816.8,0.25867367]
[1760132981066,5.2136,3855.4,3816.9,0.48345644]
[1760132981267,0.25174655,3855.3,3816.9,0.25310389]
[1760132981482,5.2136,3855.3,3817.0,0.22169709]
[1760132981657,5.2136,3855.3,3817.0,0.74432721]
[1760132981857,5.2136,3855.3,3817.1,0.24068477]
[1760132982070,5.2136,3855.3,3817.0,1.97432721]
[1760132982071,0.31643595,3855.2,3817.2,0.44733566]
[1760132982267,5.37998164,3855.2,3817.2,0.7269571]
[1760132982491,5.3714503,3855.2,3817.2,0.7269571]
[1760132982786,5.21949722,3855.2,3817.3,0.23555873]
[1760132982986,0.30202854,3855.1,3817.3,0.23555873]
[1760132983192,0.6713,3855.0,3817.4,0.9759404]
[1760132983392,0.6713,3855.0,3818.0,0.39997244]
[1760132983393,5.2136,3855.0,3818.0,0.39997244]
[1760132983692,5.2136,3855.0,3818.1,0.5066292]
[1760132983900,0.63133578,3854.9,3818.2,0.30805103]
[1760132984192,5.2136,3854.9,3818.3,0.9646607]
[1760132984381,5.2136,3854.9,3818.4,0.33356618]
[1760132984582,0.76453322,3854.8,3818.5,0.13298853]
[1760132984782,5.2136,3854.8,3818.5,0.54419149]
[1760132985175,0.11358043,3854.7,3818.5,0.54419149]
[1760132985494,0.64188939,3854.6,3818.5,0.54419149]
[1760132985691,0.76713159,3854.5,3818.5,1.46124108]
[1760132985994,0.39225317,3854.4,3818.6,0.05025401]
[1760132986166,5.60585317,3854.4,3818.7,0.1259062]
[1760132986367,5.51655137,3854.4,3818.8,0.11358043]
[1760132986587,1.09806733,3854.3,3818.8,0.11358043]
[1760132986889,0.41063048,3854.2,3818.5,1.23]
[1760132987193,5.61684712,3854.2,3818.6,0.12681685]
[1760132987387,0.3554407,3854.1,3818.6,0.12681685]
[1760132987593,0.3554407,3854.1,3818.6,0.12297739]
[1760132987594,5.5690407,3854.1,3818.6,0.12297739]
[1760132988292,5.5690407,3854.1,3818.5,2.46]
[1760132988495,0.37157944,3854.0,3818.5,2.46]
[1760132988695,5.58440018,3854.0,3818.5,3.69]
[1760132988996,1.34245566,3853.8,3818.6,0.18078551]
[1760132989165,0.29403623,3853.7,3818.5,3.69]
[1760132989366,6.13968723,3853.7,3818.5,3.69]
[1760132989566,0.99677459,3853.6,3818.6,0.20664903]
[1760132989786,5.96270188,3853.6,3818.6,0.20664903]
[1760132989979,5.9947615,3853.6,3818.6,1.23]
[1760132990173,5.2136,3853.6,3818.6,1.39889561]
[1760132990380,0.30086955,3854.4,3818.7,0.16164465]
[1760132990695,0.7811615,3853.5,3818.7,0.17265917]
[1760132990897,1.04006073,3853.4,3818.8,0.24702805]
[1760132991193,0.35140941,3853.3,3818.9,0.17649462]
[1760132991388,0.27129624,3853.4,3818.6,1.23]
[1760132991389,0.29606109,3853.2,3818.8,0.41608368]
[1760132991593,5.57245458,3853.2,3818.8,0.41608368]
[1760132991772,5.57245458,3853.2,3818.8,0.41995827]
[1760132991971,0.70742369,3853.1,3819.0,0.42164617]
[1760132992189,0.70742369,3853.1,3818.9,0.18258194]
[1760132992190,5.56137803,3853.1,3819.2,0.41975572]
[1760132992392,0.34469706,3853.0,3819.1,0.18596006]
[1760132992690,0.59428412,3852.9,3818.8,0.22579592]
[1760132992899,5.2136,3852.9,3819.3,1.04158674]
[1760132993113,0.48110294,3852.8,3819.5,0.41821503]
[1760132993278,5.42790017,3852.8,3818.8,0.41995827]
[1760132993600,0.7031375,3852.7,3818.8,0.41995827]
[1760132993802,5.2136,3852.7,3820.4,0.40386369]
[1760132993976,5.2136,3852.7,3819.9,0.76152245]
[1760132994174,0.31425473,3852.6,3818.7,2.46]
[1760132994378,5.5537714,3852.6,3818.8,0.82842021]
[1760132994598,0.4328,3852.5,3818.8,0.82842021]
[1760132994799,5.2136,3852.5,3818.8,0.82842021]
[1760132995009,0.32923545,3852.4,3818.8,0.82842021]
[1760132995315,5.68855341,3852.4,3818.7,3.69]
[1760132995476,0.32178545,3852.3,3818.7,3.69]
[1760132995681,0.4328,3852.2,3818.7,4.92]
[1760132995895,0.69401887,3852.1,3818.7,4.92]
[1760132996106,0.23110273,3852.0,3818.8,0.23886121]
[1760132996291,5.44470273,3852.0,3818.7,4.92]
[1760132996683,0.29446748,3851.9,3818.7,4.92]
[1760132997010,5.2136,3851.9,3818.8,0.83106447]
[1760132997179,5.2136,3851.9,3818.8,0.55307068]
[1760132997380,5.2136,3851.9,3818.9,0.22442046]
[1760132997582,5.2136,3851.9,3819.0,0.20426662]
[1760132997890,0.27886901,3851.8,3819.0,0.20426662]
[1760132998206,0.27886901,3851.8,3818.8,0.15561753]
[1760132998207,0.58252392,3851.7,3818.8,0.15561753]
[1760132998385,0.58252392,3851.7,3818.7,6.15]
[1760132998386,0.13630151,3851.7,3818.7,6.15]
[1760132998591,0.5039419,3851.6,3818.7,7.38]
[1760132998802,0.13630151,3851.7,3818.7,7.38]
[1760132999000,0.81200209,3851.6,3818.7,7.38]
[1760132999213,0.60440962,3851.5,3818.7,7.38]
[1760132999413,0.13630151,3851.7,3820.1,0.40397306]
[1760132999617,0.69476939,3851.5,3820.1,0.40397306]
[1760132999915,0.33253882,3851.4,3820.2,0.27569153]
[1760133000093,0.13630151,3851.7,3820.1,1.63008778]
[1760133000289,0.33144915,3851.5,3820.1,1.23]
[1760133000483,0.13630151,3851.7,3820.1,1.23]
[1760133000688,0.13630151,3851.7,3823.2,0.40005411]
[1760133000987,0.13630151,3851.7,3823.2,0.40393178]
[1760133000988,0.30013955,3851.6,3823.2,0.40393178]
[1760133001503,0.13642275,3851.5,3823.2,1.63005411]
[1760133001705,0.13642275,3851.5,3823.2,1.23387782]
[1760133002015,0.2428358,3851.4,3826.0,0.40024284]
[1760133002195,0.00589722,3851.8,3826.0,0.40024284]
[1760133002805,0.001,3853.7,3826.0,0.40024284]
[1760133002806,0.00589722,3851.6,3826.0,1.63024284]
[1760133003012,0.00589722,3851.6,3826.0,1.23]
[1760133003207,5.21589722,3851.6,3828.5,0.3998476]
[1760133003523,0.00589722,3851.6,3828.5,0.3998476]
[1760133004202,0.00589722,3851.6,3828.5,1.23]
[1760133004517,5.21419722,3851.6,3828.5,1.23]
[1760133004704,5.21419722,3851.6,3828.5,1.23387195]
[1760133005299,5.21419722,3851.6,3828.5,1.23]
[1760133005822,0.19360424,3851.5,3828.5,2.46]
[1760133007104,5.40190424,3851.5,3828.6,0.28982806]
[1760133007421,5.40190424,3851.5,3828.5,2.46]
[1760133007422,0.26922295,3851.4,3828.5,3.69]
[1760133007720,5.15125119,3851.4,3828.5,3.69]
[1760133008630,5.15125119,3851.4,3828.5,4.92]
[1760133009133,4.88202824,3851.4,3828.6,0.62383862]
[1760133009336,0.25599235,3851.3,3828.5,4.92]
[1760133009819,0.28695164,3851.2,3828.6,0.2643976]
[1760133010136,0.00589722,3851.5,3828.5,6.15]
[1760133010338,5.21419722,3851.5,3828.5,6.15]
[1760133010531,0.19146767,3851.4,3828.5,6.15]
[1760133010834,0.19146767,3851.4,3828.6,0.26285408]
[1760133011033,0.00589722,3851.5,3828.5,6.15]
[1760133011242,0.17294375,3851.4,3828.5,6.15]
[1760133011538,0.00589722,3851.3,3829.1,0.3999522]
[1760133011834,5.21399722,3851.3,3829.1,0.3999522]
[1760133012138,5.38252431,3851.3,3829.1,0.3999522]
[1760133012344,0.16852709,3851.2,3829.1,0.3999522]
[1760133012634,0.16852709,3851.2,3828.5,7.38]
[1760133012840,1.36416454,3851.2,3831.3,0.39979873]
[1760133013037,1.30030129,3851.0,3831.3,0.39979873]
[1760133013242,1.30784155,3850.8,3831.3,0.39979873]
[1760133013430,0.26586733,3850.7,3831.3,0.39979873]
[1760133013631,1.30219331,3850.6,3831.3,0.39979873]
[1760133013826,6.77486064,3850.6,3828.5,8.61]
[1760133014140,1.30194395,3850.4,3833.2,0.3999271]
[1760133014356,1.39167213,3850.2,3828.5,9.84387282]
[1760133014636,0.85183677,3850.1,3828.6,0.96113271]
[1760133014836,0.85183677,3850.1,3828.5,9.84]
[1760133014837,7.34991116,3850.1,3828.5,9.84]
[1760133015147,0.59239699,3850.0,3828.6,0.25985939]
[1760133015311,5.83255409,3850.0,3828.6,0.5385754]
[1760133015517,0.11433599,3849.9,3828.6,0.5385754]
[1760133015722,5.66260411,3849.9,3828.7,0.25976174]
[1760133015923,5.66260411,3849.9,3828.8,0.34408978]
[1760133016153,0.30086802,3849.8,3828.9,0.83347191]
[1760133016358,6.02055479,3849.8,3828.9,0.26754641]
[1760133016557,0.16857052,3849.7,3828.9,0.26754641]
[1760133016724,5.68840935,3849.7,3828.8,0.22866083]
[1760133016922,1.39739089,3849.5,3829.0,0.22866083]
[1760133017122,1.39739089,3849.5,3829.1,0.61300507]
[1760133017123,0.14816186,3849.4,3829.1,0.61300507]
[1760133017367,5.35496186,3849.4,3829.2,0.22750633]
[1760133017527,5.2068,3849.4,3829.3,0.3204389]
[1760133017723,1.35195502,3849.2,3829.4,0.48971982]
[1760133018057,6.55875502,3849.2,3829.5,0.33199759]
[1760133018259,0.25635596,3849.1,3829.6,0.43439466]
[1760133018437,1.37502681,3849.0,3829.7,0.48617586]
[1760133018764,1.39353725,3848.9,3829.7,0.18929044]
[1760133019081,6.60033725,3848.9,3829.8,0.61152403]
[1760133019384,1.3430238,3848.8,3829.9,0.21626086]
[1760133019523,6.68635418,3848.8,3829.9,0.21626086]
[1760133019723,6.68635418,3848.8,3830.0,0.2972837]
[1760133019924,6.68635418,3848.8,3830.1,0.29621657]
[1760133020359,6.68635418,3848.8,3830.1,0.29238527]
[1760133020560,6.68635418,3848.8,3830.2,0.32334379]
[1760133020769,6.68635418,3848.8,3830.3,0.29116228]
[1760133021061,6.68635418,3848.8,3830.4,0.32026045]
[1760133021261,6.68635418,3848.8,3830.5,0.26065249]
[1760133021465,6.68635418,3848.8,3830.6,0.39537712]
[1760133021644,6.68635418,3848.8,3830.7,0.25266594]
[1760133021837,6.68635418,3848.8,3830.8,0.34990382]
[1760133022042,6.68635418,3848.8,3830.9,0.25828692]
[1760133022273,6.5498238,3848.8,3831.0,0.30637246]
[1760133022440,6.5498238,3848.8,3831.1,0.27967776]
[1760133022635,6.5498238,3848.8,3831.1,0.56689163]
[1760133022831,1.36416454,3851.2,3831.2,0.30554721]
[1760133023057,1.36416454,3851.2,3831.3,0.27463844]
[1760133023264,1.36416454,3851.2,3831.4,0.26763838]
[1760133023478,0.00589722,3851.3,3831.5,0.27425599]
[1760133023668,0.00589722,3851.3,3831.6,0.25723596]
[1760133023863,1.36416454,3851.2,3831.7,0.69248317]
[1760133024180,6.57056454,3851.2,3832.6,0.3999102]
[1760133024375,6.57056454,3851.2,3832.7,1.19192129]
[1760133024738,6.57056454,3851.2,3832.7,0.57794602]
[1760133024943,6.57056454,3851.2,3832.8,0.39931245]
[1760133025138,0.65559615,3846.6,3832.9,0.29142287]
[1760133025467,1.31048767,3846.5,3833.0,0.68766308]
[1760133025644,1.31048767,3846.5,3833.1,0.26713613]
[1760133025842,1.32047768,3846.3,3833.1,0.26713613]
[1760133026057,1.38896067,3846.1,3833.1,0.26713613]
[1760133026242,5.2087,3846.3,3833.1,0.26713613]
[1760133026243,0.02566438,3846.0,3833.1,0.26713613]
[1760133026653,1.34034298,3845.9,3833.1,0.26713613]
[1760133026856,1.31462852,3845.7,3833.2,0.37851512]
[1760133027057,1.36819554,3845.5,3833.3,0.19869068]
[1760133027258,1.30467362,3845.3,3833.4,0.35558251]
[1760133027454,5.2092,3845.3,3833.5,0.2509296]
[1760133027755,0.00589722,3851.3,3833.5,0.08082285]
[1760133027955,1.784838,3850.0,3833.5,0.14716303]
[1760133028155,0.2207,3849.9,3833.6,0.39209276]
[1760133028355,0.84208377,3849.8,3833.7,0.07486748]
[1760133028555,5.6627,3849.8,3833.7,0.07486748]
[1760133028875,5.206,3849.8,3833.7,0.07486748]
[1760133029282,0.13623652,3849.7,3833.7,0.07486748]
[1760133029450,5.34223652,3849.7,3833.7,0.07486748]
[1760133029776,5.34223652,3849.7,3833.8,0.54716972]
[1760133029977,5.34223652,3849.7,3833.9,0.16402367]
[1760133030185,5.34223652,3849.7,3834.0,0.31476391]
[1760133030384,5.34223652,3849.7,3834.1,0.13836913]
[1760133030544,1.784838,3850.0,3834.2,0.27846531]
[1760133030754,1.784838,3850.0,3833.7,1.23]
[1760133030755,1.784838,3850.0,3834.3,0.1396608]
[1760133031377,1.784838,3850.0,3834.4,0.10082059]
[1760133032200,0.13610376,3849.9,3834.4,0.10082059]
[1760133032484,0.39249652,3850.0,3834.4,1.23]
[1760133032696,0.28815352,3849.9,3834.4,1.23]
[1760133032983,0.121208,3855.1,3834.5,0.23316471]
[1760133032984,0.21038242,3853.6,3834.5,0.23316471]
[1760133033493,0.25192995,3855.0,3834.4,1.23]
[1760133033651,0.34902263,3853.5,3834.5,0.26663335]
[1760133033857,0.34902263,3853.5,3834.4,2.46]
[1760133034056,0.34902263,3853.5,3835.4,0.39972049]
[1760133034257,0.26294774,3853.4,3835.4,0.39972049]
[1760133034483,0.26757263,3854.9,3835.5,0.29946669]
[1760133034687,1.36737061,3861.8,3835.5,0.29946669]
[1760133034891,0.23101261,3854.8,3835.6,0.25187344]
[1760133035089,5.2013,3854.8,3835.5,1.23]
[1760133035251,0.39121763,3861.5,3835.5,1.23]
[1760133035252,0.36540551,3855.5,3835.5,1.23]
[1760133035453,0.36540551,3854.7,3835.6,0.98892009]
[1760133035681,0.11358043,3855.1,3835.5,1.23]
[1760133035886,0.13614641,3854.6,3835.5,1.23]
[1760133036195,0.23480794,3857.8,3835.6,0.3520127]
[1760133036355,5.2015,3854.6,3835.6,0.71867103]
[1760133036561,0.13611218,3854.5,3835.5,2.46]
[1760133036889,5.33761218,3854.5,3835.5,2.46]
[1760133037076,5.33761218,3854.5,3835.6,0.00386435]
[1760133037282,5.2015,3854.5,3835.7,0.39552268]
[1760133037595,0.13613472,3854.4,3835.8,0.35714517]
[1760133037760,0.13613472,3854.4,3835.5,3.69]
[1760133037952,0.10675919,3854.3,3835.5,3.69]
[1760133038375,5.27871845,3854.3,3835.6,0.02607154]
[1760133038575,5.2017,3854.3,3835.6,0.77499883]
[1760133038783,0.16625632,3854.2,3835.5,3.69]
[1760133038982,0.22483966,3854.2,3835.5,3.69]
[1760133039183,0.22483966,3854.2,3835.6,0.39391879]
[1760133039426,0.001,3853.7,3835.6,0.30510178]
[1760133039630,0.001,3853.7,3835.6,0.33117332]
[1760133039917,0.001,3853.7,3835.6,0.02653129]
[1760133040085,0.17205392,3853.6,3835.6,0.22870195]
[1760133040285,0.17205392,3853.6,3835.6,0.2509112]
[1760133040509,0.17205392,3853.6,3835.6,1.45483966]
[1760133040676,0.13613012,3853.5,3835.6,1.45483966]
[1760133040876,0.4382803,3853.4,3835.6,1.23]
[1760133041089,0.20636073,3853.4,3835.6,1.23]
[1760133041314,0.13613012,3853.5,3835.6,1.23]
[1760133041513,0.28445138,3853.4,3835.6,1.23]
[1760133041691,0.49942254,3853.4,3835.6,1.23]
[1760133042013,0.2937673,3853.3,3835.6,2.46]
[1760133042216,0.22641351,3853.2,3835.6,2.46]
[1760133042517,0.13613012,3853.5,3835.7,0.02607086]
[1760133042675,0.33769214,3853.1,3835.7,0.35414051]
[1760133042876,0.44153521,3853.5,3835.6,2.46]
[1760133043077,0.13613012,3853.5,3835.6,2.46]
[1760133043281,0.13613012,3853.5,3835.6,3.69]
[1760133043482,0.34333398,3853.7,3835.7,0.00386435]
[1760133043721,0.32806985,3853.6,3835.7,0.00386435]
[1760133044032,0.32806985,3853.6,3835.6,3.69]
[1760133044033,0.13613415,3853.4,3835.6,3.69]
[1760133044336,0.13613415,3853.4,3835.8,0.34719833]
[1760133044614,0.001,3853.7,3835.9,0.53653245]
[1760133044814,0.001,3853.7,3835.9,0.5326681]
[1760133045018,0.001,3853.7,3836.0,3.25046615]
[1760133045198,0.001,3853.7,3836.1,0.25321526]
[1760133045401,0.001,3853.7,3836.2,3.31058568]
[1760133045589,0.001,3853.7,3836.3,0.5060862]
[1760133045810,0.001,3853.7,3836.4,2.9647097]
[1760133046027,0.001,3853.7,3836.5,0.2815214]
[1760133046231,0.001,3853.7,3836.6,2.99320449]
[1760133046426,0.001,3853.7,3836.7,0.02606406]
[1760133046728,0.13611233,3853.6,3836.8,3.03287115]
[1760133046931,0.13611233,3853.6,3836.9,0.0260627]
[1760133047133,0.001,3853.7,3837.0,2.73]
[1760133047431,0.13603283,3853.5,3837.1,0.02003924]
[1760133047634,0.13603283,3853.5,3836.9,1.23]
[1760133047635,0.13603283,3853.5,3837.2,2.73]
[1760133048142,0.13603283,3853.5,3837.3,0.13603283]
[1760133048317,0.13603283,3853.5,3836.9,1.23]
[1760133048318,0.13603283,3853.5,3837.4,2.75605931]
[1760133048511,0.13603283,3853.5,3837.4,2.73]
[1760133048830,0.13603283,3853.5,3837.5,0.02605863]
[1760133049037,0.001,3853.7,3837.6,2.73]
[1760133049741,0.001,3853.7,3837.7,0.62986116]
[1760133050033,0.001,3853.7,3837.8,2.73]
[1760133050227,0.001,3853.7,3837.9,0.3247877]
[1760133050422,0.001,3853.7,3838.0,2.73]
[1760133050602,0.001,3853.7,3838.1,0.26526108]
[1760133050803,0.001,3853.7,3838.2,3.34238846]
[1760133051036,0.001,3853.7,3838.3,0.26426095]
[1760133051209,0.001,3853.7,3838.4,2.73]
[1760133051410,0.001,3853.7,3838.5,0.21889112]
[1760133051607,0.001,3853.7,3838.6,2.96867264]
[1760133051808,0.001,3853.7,3838.7,0.56684899]
[1760133052139,0.001,3853.7,3838.8,0.44171978]
[1760133052308,0.001,3853.7,3838.9,0.31092881]
[1760133052512,0.001,3853.7,3838.9,0.54360071]
[1760133052727,0.001,3853.7,3839.0,0.24696539]
[1760133052927,0.001,3853.7,3839.1,0.61358756]
[1760133053250,0.001,3853.7,3839.2,0.26023696]
[1760133053549,0.001,3853.7,3839.3,0.02604641]
[1760133053715,0.001,3853.7,3839.3,0.02987322]
[1760133053915,0.001,3853.7,3839.4,0.51329032]
[1760133054146,0.001,3853.7,3839.5,0.02604505]
[1760133054335,0.001,3853.7,3839.4,1.15604505]
[1760133054541,0.02604505,3853.6,3839.6,0.52910089]
[1760133054740,0.02604505,3853.6,3839.7,0.56405273]
[1760133054936,0.02604505,3853.6,3839.7,0.80484064]
[1760133055138,0.001,3853.7,3839.7,0.80484064]
[1760133055139,0.001,3853.7,3839.8,0.28928103]
[1760133055352,0.001,3853.7,3839.9,0.26628908]
[1760133055529,0.001,3853.7,3840.1,1.25408757]
[1760133055853,0.001,3853.7,3840.2,1.08619502]
[1760133056216,0.001,3853.7,3840.2,0.71887217]
[1760133056420,0.001,3853.7,3840.2,0.31251627]
[1760133056919,0.001,3853.7,3840.2,1.54251627]
[1760133057317,0.001,3853.7,3840.3,0.3058467]
[1760133057520,0.001,3853.7,3840.5,1.20808769]